bitfinex/quotes_BTCUSD_20241009
["timestamp","ask_amount","ask_price","bid_price","bid_amount"]
[1728438262607,0.32648944,62470.0,62469.0,0.00365]
[1728438263053,0.32048944,62470.0,62469.0,0.00365]
[1728438263262,0.32248944,62470.0,62469.0,0.00365]
[1728438263495,0.32348944,62470.0,62469.0,0.00365]
[1728438263695,0.32148944,62470.0,62469.0,0.00365]
[1728438264126,0.32248944,62470.0,62469.0,0.00365]
[1728438268110,0.31748944,62470.0,62469.0,0.00365]
[1728438270553,0.32248944,62470.0,62469.0,0.00365]
[1728438271201,0.31748944,62470.0,62469.0,0.00365]
[1728438276363,0.002,62470.0,62469.0,0.00365]
[1728438276825,0.162076,62470.0,62469.0,0.00365]
[1728438277061,0.002,62470.0,62469.0,0.00365]
[1728438277958,0.161076,62470.0,62469.0,0.00365]
[1728438278173,0.160074,62471.0,62469.0,0.00365]
[1728438278380,0.160074,62471.0,62469.0,0.00565]
[1728438278828,0.320143,62472.0,62469.0,0.00965]
[1728438279060,0.320143,62472.0,62469.0,0.01365]
[1728438279061,0.160076,62470.0,62469.0,0.01365]
[1728438279310,0.160076,62470.0,62469.0,0.00365]
[1728438279509,0.160076,62470.0,62469.0,0.00665]
[1728438279748,0.160076,62470.0,62469.0,0.00965]
[1728438279966,0.160076,62470.0,62469.0,0.00665]
[1728438281095,0.320128,62475.0,62469.0,0.00365]
[1728438281315,0.160065,62475.0,62471.0,0.160072]
[1728438282233,0.160066,62474.0,62471.0,0.160072]
[1728438282871,0.16007,62473.0,62469.0,0.163727]
[1728438285126,0.16007,62473.0,62469.0,0.164727]
[1728438285561,0.16007,62473.0,62469.0,0.165727]
[1728438287625,0.000822,62477.0,62476.0,0.160061]
[1728438288752,0.003822,62477.0,62476.0,0.160061]
[1728438289199,0.000822,62477.0,62476.0,0.160061]
[1728438289659,0.002822,62477.0,62476.0,0.176061]
[1728438291389,0.002822,62477.0,62476.0,0.016]
[1728438292252,0.002822,62477.0,62476.0,0.176061]
[1728438295072,0.002822,62477.0,62476.0,0.257561]
[1728438303717,0.002822,62477.0,62476.0,0.357561]
[1728438304453,0.002822,62477.0,62476.0,0.72376366]
[1728438304918,0.002822,62477.0,62476.0,0.72849448]
[1728438305373,0.001822,62477.0,62476.0,0.72049448]
[1728438305557,0.000822,62477.0,62476.0,0.71249448]
[1728438305816,0.004822,62477.0,62476.0,0.71349448]
[1728438306264,0.004822,62477.0,62476.0,0.71249448]
[1728438306544,0.004822,62477.0,62476.0,0.70876366]
[1728438306778,0.004822,62477.0,62476.0,0.70776366]
[1728438306996,0.000822,62477.0,62476.0,0.58747444]
[1728438309538,0.000822,62477.0,62476.0,0.260061]
[1728438310679,0.002822,62477.0,62476.0,0.1]
[1728438310902,0.002822,62477.0,62476.0,0.260061]
[1728438311158,0.000822,62477.0,62476.0,0.260061]
[1728438311401,0.000822,62477.0,62476.0,0.268061]
[1728438311616,0.000822,62477.0,62476.0,0.277061]
[1728438311846,0.000822,62477.0,62476.0,0.268061]
[1728438312068,0.000822,62477.0,62476.0,0.277061]
[1728438313465,0.000822,62477.0,62476.0,0.453761]
[1728438315338,0.000822,62477.0,62476.0,0.60917444]
[1728438316729,0.000822,62477.0,62476.0,0.277061]
[1728438318592,0.000822,62477.0,62476.0,0.260061]
[1728438319492,0.006822,62477.0,62476.0,0.261061]
[1728438321031,0.008822,62477.0,62476.0,0.262061]
[1728438322280,0.008822,62477.0,62476.0,0.263703]
[1728438325658,0.008822,62477.0,62476.0,0.003642]
[1728438325891,0.34828,62477.0,62476.0,0.003642]
[1728438327065,0.34628,62477.0,62476.0,0.002642]
[1728438327308,0.34628,62477.0,62476.0,0.004642]
[1728438327949,0.081822,62477.0,62476.0,0.003642]
[1728438328166,0.081822,62477.0,62476.0,0.163703]
[1728438328167,0.000822,62477.0,62476.0,0.163703]
[1728438329034,0.000822,62477.0,62476.0,0.003642]
[1728438329250,0.000822,62477.0,62476.0,0.163703]
[1728438329474,0.49229344,62477.0,62476.0,0.003642]
[1728438329702,0.49429344,62477.0,62476.0,0.003642]
[1728438329921,0.49906187,62477.0,62476.0,0.003642]
[1728438330164,0.5014112,62477.0,62476.0,0.003642]
[1728438330383,0.5064112,62477.0,62476.0,0.003642]
[1728438330595,0.51458853,62477.0,62476.0,0.001642]
[1728438331049,0.52158853,62477.0,62476.0,0.002642]
[1728438331272,0.5148201,62477.0,62476.0,0.002642]
[1728438331495,0.51347077,62477.0,62476.0,0.002642]
[1728438331716,0.51447077,62477.0,62476.0,0.002642]
[1728438331915,0.51647077,62477.0,62476.0,0.002642]
[1728438332196,0.52447077,62477.0,62476.0,0.003642]
[1728438332426,0.51647077,62477.0,62476.0,0.002642]
[1728438332654,0.52682104,62477.0,62476.0,0.003642]
[1728438333102,0.51782104,62477.0,62476.0,0.002642]
[1728438333581,0.52682104,62477.0,62476.0,0.003642]
[1728438334050,0.52682104,62477.0,62476.0,0.001642]
[1728438334051,0.51547077,62477.0,62476.0,0.001642]
[1728438334278,0.50547077,62477.0,62476.0,0.001642]
[1728438334510,0.51747077,62477.0,62476.0,0.003642]
[1728438334709,0.51747077,62477.0,62476.0,0.002642]
[1728438334938,0.50947077,62477.0,62476.0,0.002642]
[1728438335151,0.51747077,62477.0,62476.0,0.003642]
[1728438335379,0.50929344,62477.0,62476.0,0.003642]
[1728438336492,0.51429344,62477.0,62476.0,0.003642]
[1728438336740,0.50529344,62477.0,62476.0,0.002642]
[1728438336956,0.50529344,62477.0,62476.0,0.003642]
[1728438337178,0.51429344,62477.0,62476.0,0.003642]
[1728438337442,0.51729344,62477.0,62476.0,0.004642]
[1728438337663,0.49229344,62477.0,62476.0,0.001642]
[1728438337875,0.49929344,62477.0,62476.0,0.001642]
[1728438338099,0.49729344,62477.0,62476.0,0.001642]
[1728438338585,0.52764403,62477.0,62476.0,0.001642]
[1728438339230,0.52764403,62477.0,62476.0,0.002642]
[1728438339231,0.63564403,62477.0,62476.0,0.002642]
[1728438339445,0.336476,62470.0,62463.0,0.24125064]
[1728438339658,0.69812749,62470.0,62463.0,0.24125064]
[1728438340116,0.84337768,62470.0,62463.0,0.24125064]
[1728438340765,0.69812749,62470.0,62463.0,0.24125064]
[1728438340968,0.70712749,62470.0,62469.0,0.00465]
[1728438341408,0.69212749,62470.0,62469.0,0.00565]
[1728438341628,0.69012749,62470.0,62469.0,0.00565]
[1728438342319,0.84554093,62470.0,62469.0,0.00565]
[1728438342599,0.8707888,62470.0,62469.0,0.00565]
[1728438342833,0.71537536,62470.0,62469.0,0.00565]
[1728438343258,0.71737536,62470.0,62469.0,0.00565]
[1728438343471,0.69012749,62470.0,62469.0,0.00565]
[1728438343903,0.69212749,62470.0,62469.0,0.00565]
[1728438344119,0.69012749,62470.0,62469.0,0.00565]
[1728438344546,0.93137813,62470.0,62469.0,0.00565]
[1728438344754,0.69012749,62470.0,62469.0,0.00565]
[1728438344962,0.69237536,62470.0,62469.0,0.00565]
[1728438345176,0.69437536,62470.0,62469.0,0.00565]
[1728438345819,0.52853705,62461.0,62460.0,0.001642]
[1728438346036,0.68395049,62461.0,62460.0,0.001642]
[1728438346485,0.67695049,62461.0,62460.0,0.001642]
[1728438346703,0.68195049,62461.0,62460.0,0.001642]
[1728438347141,0.68395049,62461.0,62460.0,0.001642]
[1728438347357,0.84158214,62461.0,62460.0,0.001642]
[1728438347600,0.84658214,62461.0,62460.0,0.001642]
[1728438348279,0.71395049,62461.0,62460.0,0.001642]
[1728438348491,0.70895049,62461.0,62460.0,0.001642]
[1728438348709,0.71795049,62461.0,62460.0,0.002642]
[1728438349599,0.71595049,62461.0,62460.0,0.002642]
[1728438349819,0.72595049,62461.0,62460.0,0.003642]
[1728438350053,0.85381368,62461.0,62460.0,0.002642]
[1728438350355,0.84381368,62461.0,62460.0,0.001642]
[1728438350586,0.84381368,62461.0,62448.0,0.24289264]
[1728438350587,0.16713,62449.0,62448.0,0.24289264]
[1728438350810,0.69478149,62449.0,62448.0,0.24289264]
[1728438351038,0.66978149,62449.0,62448.0,0.24289264]
[1728438351262,0.66978149,62449.0,62448.0,0.001642]
[1728438351489,0.66478149,62449.0,62448.0,0.001642]
[1728438351941,0.31554344,62449.0,62448.0,0.001642]
[1728438352386,0.37344164,62449.0,62448.0,0.001642]
[1728438352609,0.37844164,62449.0,62448.0,0.001642]
[1728438352894,0.32054344,62449.0,62448.0,0.001642]
[1728438353342,0.32954344,62449.0,62448.0,0.002642]
[1728438354002,0.32854344,62449.0,62448.0,0.002642]
[1728438354225,0.32654344,62449.0,62448.0,0.002642]
[1728438354875,0.32954344,62449.0,62448.0,0.002642]
[1728438355119,0.33854344,62449.0,62448.0,0.003642]
[1728438355340,0.33354344,62449.0,62448.0,0.003642]
[1728438355832,0.33354344,62449.0,62448.0,0.079942]
[1728438355833,0.018,62449.0,62448.0,0.079942]
[1728438356046,0.018,62449.0,62448.0,0.240075]
[1728438356307,0.009,62449.0,62448.0,0.239075]
[1728438356523,0.012,62449.0,62448.0,0.239075]
[1728438356745,0.24125064,62458.0,62452.0,0.320242]
[1728438356960,0.24125064,62458.0,62455.0,0.480344]
[1728438357174,0.24125064,62458.0,62455.0,0.160114]
[1728438357402,0.160105,62459.0,62455.0,0.160113]
[1728438357625,0.160102,62461.0,62455.0,0.480343]
[1728438357846,0.160102,62460.0,62456.0,0.160112]
[1728438358064,0.320196,62462.0,62453.0,0.320236]
[1728438358316,0.320177,62466.0,62452.0,0.24125064]
[1728438358556,0.160093,62464.0,62460.0,0.160101]
[1728438358773,0.56142664,62466.0,62452.0,0.34105064]
[1728438358979,0.000821,62470.0,62452.0,0.34105064]
[1728438359219,0.24125064,62466.0,62464.0,0.16009]
[1728438359429,0.24125064,62466.0,62456.0,0.320224]
[1728438359430,0.320158,62469.0,62456.0,0.320224]
[1728438359654,0.480238,62469.0,62464.0,0.160091]
[1728438359871,0.15623444,62470.0,62457.0,0.320218]
[1728438359872,0.33947249,62470.0,62457.0,0.320218]
[1728438360104,0.006,62466.0,62460.0,0.24125064]
[1728438360339,0.160085,62467.0,62463.0,0.160094]
[1728438360565,0.000821,62470.0,62462.0,0.320193]
[1728438360786,0.160085,62467.0,62462.0,0.480288]
[1728438361008,0.160085,62467.0,62463.0,0.160093]
[1728438361229,0.330159,62469.0,62456.0,0.001]
[1728438361230,0.24125064,62465.0,62456.0,0.001]
[1728438361444,0.1601,62461.0,62457.0,0.160109]
[1728438361661,0.18323805,62465.0,62455.0,0.320225]
[1728438361662,0.160096,62463.0,62459.0,0.160104]
[1728438362111,0.320141,62473.0,62460.0,0.24125064]
[1728438362350,0.24125064,62471.0,62462.0,0.320193]
[1728438362587,0.160079,62469.0,62465.0,0.160088]
[1728438363255,0.012,62467.0,62465.0,0.160088]
[1728438363477,0.012,62467.0,62463.0,0.321186]
[1728438363478,0.012,62467.0,62464.0,0.160091]
[1728438363693,0.24125064,62473.0,62464.0,0.320183]
[1728438363913,0.24125064,62473.0,62460.0,0.0799]
[1728438363914,0.24125064,62473.0,62465.0,0.002]
[1728438364139,0.160079,62469.0,62465.0,0.163089]
[1728438364374,0.16008,62469.0,62465.0,0.163089]
[1728438364600,0.160082,62468.0,62465.0,0.005]
[1728438364838,0.160082,62468.0,62463.0,0.320188]
[1728438364839,0.160082,62468.0,62464.0,0.16309]
[1728438365267,0.160086,62467.0,62465.0,0.002]
[1728438365490,0.320161,62469.0,62465.0,0.002]
[1728438365491,0.160081,62469.0,62465.0,0.002]
[1728438365705,0.320148,62471.0,62465.0,0.162089]
[1728438365920,0.160083,62468.0,62465.0,0.002]
[1728438366135,0.160899,62470.0,62465.0,0.162088]
[1728438366351,0.16008,62469.0,62465.0,0.162088]
[1728438366570,0.16008,62469.0,62465.0,0.164088]
[1728438366808,0.000821,62470.0,62465.0,0.008]
[1728438367050,0.000821,62470.0,62468.0,0.16008]
[1728438367275,0.000821,62470.0,62465.0,0.480264]
[1728438367489,0.000821,62470.0,62467.0,0.160082]
[1728438367722,0.000821,62470.0,62467.0,0.160083]
[1728438368154,0.000821,62470.0,62467.0,0.320168]
[1728438368443,0.000821,62470.0,62469.0,0.160079]
[1728438368897,0.000821,62470.0,62469.0,0.237679]
[1728438370266,0.000821,62470.0,62469.0,0.337679]
[1728438370677,0.000821,62470.0,62469.0,0.338679]
[1728438370950,0.000821,62470.0,62469.0,0.339679]
[1728438371187,0.000821,62470.0,62469.0,0.67833049]
[1728438371446,0.005821,62470.0,62469.0,0.67933049]
[1728438371722,0.000821,62470.0,62469.0,0.77543049]
[1728438372006,0.24125064,62495.0,62490.0,0.354125]
[1728438372311,0.24125064,62495.0,62490.0,0.54236305]
[1728438373001,0.00072718,62498.0,62490.0,0.69777649]
[1728438373516,0.00072718,62498.0,62490.0,0.69877649]
[1728438373756,0.002821,62491.0,62490.0,0.69877649]
[1728438376405,0.002821,62491.0,62490.0,0.355125]
[1728438377674,0.002821,62491.0,62490.0,0.261025]
[1728438380575,0.002821,62491.0,62490.0,0.59967649]
[1728438381094,0.002821,62491.0,62490.0,0.67717649]
[1728438382353,0.002821,62491.0,62490.0,0.68417649]
[1728438382830,0.002821,62491.0,62490.0,0.68217649]
[1728438383569,0.002821,62491.0,62490.0,0.77907649]
[1728438383821,0.002821,62491.0,62490.0,0.78107649]
[1728438384326,0.002821,62491.0,62490.0,0.80407649]
[1728438385252,0.002821,62491.0,62490.0,0.80207649]
[1728438385956,0.002821,62491.0,62490.0,0.77907649]
[1728438386472,0.002821,62491.0,62490.0,0.80207649]
[1728438386736,0.002821,62491.0,62490.0,0.80407649]
[1728438386975,0.002821,62491.0,62490.0,0.80207649]
[1728438388487,0.002821,62491.0,62490.0,0.49893844]
[1728438388767,0.002821,62491.0,62490.0,0.42143844]
[1728438391776,0.002821,62491.0,62490.0,0.161025]
[1728438393001,0.002821,62491.0,62490.0,0.261025]
[1728438405560,0.000821,62491.0,62490.0,0.261025]
[1728438405793,0.000821,62491.0,62490.0,0.260025]
[1728438406032,0.001821,62491.0,62490.0,0.273025]
[1728438406520,0.001821,62491.0,62490.0,0.260025]
[1728438406521,0.000821,62491.0,62490.0,0.260025]
[1728438406787,0.001821,62491.0,62490.0,0.107]
[1728438407043,0.001821,62491.0,62490.0,0.014]
[1728438407044,0.162844,62491.0,62490.0,0.014]
[1728438407280,0.002821,62491.0,62490.0,0.014]
[1728438407520,0.162844,62491.0,62490.0,0.014]
[1728438408243,0.002821,62491.0,62490.0,0.014]
[1728438408486,0.162844,62491.0,62490.0,0.014]
[1728438408932,0.162844,62491.0,62490.0,0.174025]
[1728438408933,0.002821,62491.0,62490.0,0.174025]
[1728438409137,0.002821,62491.0,62490.0,0.274025]
[1728438410308,0.000821,62491.0,62490.0,0.260025]
[1728438410522,0.000821,62491.0,62490.0,0.262025]
[1728438410816,0.000821,62491.0,62490.0,0.261025]
[1728438412407,0.082921,62491.0,62485.0,0.1]
[1728438412635,0.173721,62491.0,62487.0,0.420066]
[1728438412855,0.160026,62490.0,62487.0,0.1]
[1728438413142,0.173721,62491.0,62487.0,0.260032]
[1728438413143,0.338745,62491.0,62487.0,0.260032]
[1728438413349,0.338745,62491.0,62490.0,0.001]
[1728438413756,0.173721,62491.0,62487.0,0.1]
[1728438413968,0.160035,62487.0,62484.0,0.1]
[1728438414397,0.160035,62487.0,62484.0,0.26004]
[1728438416353,0.34328405,62482.0,62481.0,0.003642]
[1728438416579,0.3456346,62482.0,62481.0,0.001642]
[1728438416820,0.3456346,62482.0,62481.0,0.002642]
[1728438417065,0.3456346,62482.0,62481.0,0.004642]
[1728438417563,0.34328405,62482.0,62481.0,0.004642]
[1728438418706,0.3456346,62482.0,62481.0,0.004642]
[1728438419875,0.50104804,62482.0,62481.0,0.004642]
[1728438420347,0.50104804,62482.0,62481.0,0.002642]
[1728438420592,0.50104804,62482.0,62481.0,0.001642]
[1728438420872,0.80036884,62482.0,62481.0,0.001642]
[1728438421114,0.83036884,62482.0,62481.0,0.001642]
[1728438421355,0.71404804,62482.0,62481.0,0.001642]
[1728438421611,0.71169749,62482.0,62481.0,0.001642]
[1728438421848,0.71569749,62482.0,62481.0,0.001642]
[1728438422092,0.71969749,62482.0,62481.0,0.001642]
[1728438422807,0.71769749,62482.0,62481.0,0.001642]
[1728438423025,0.72169749,62482.0,62481.0,0.002642]
[1728438423253,0.71369749,62482.0,62481.0,0.002642]
[1728438423541,0.71869749,62482.0,62481.0,0.002642]
[1728438423775,0.71869749,62482.0,62481.0,0.001642]
[1728438423776,0.70769749,62482.0,62481.0,0.001642]
[1728438423998,0.71869749,62482.0,62481.0,0.002642]
[1728438424268,0.79443986,62482.0,62481.0,0.001]
[1728438424512,0.328874,62471.0,62470.0,0.24125064]
[1728438424756,0.66752549,62471.0,62470.0,0.24125064]
[1728438424985,0.236902,62460.0,62455.0,0.001642]
[1728438425229,0.236902,62460.0,62455.0,0.161756]
[1728438425447,0.236902,62460.0,62457.0,0.16011]
[1728438425448,0.0768,62460.0,62457.0,0.16011]
[1728438426205,0.236902,62460.0,62459.0,0.001]
[1728438426649,0.236902,62460.0,62456.0,0.160112]
[1728438426893,0.160109,62458.0,62455.0,0.001642]
[1728438427109,0.160109,62458.0,62457.0,0.001]
[1728438428697,0.160109,62458.0,62457.0,0.001642]
[1728438429147,0.55711,62460.0,62457.0,0.001642]
[1728438430075,0.16009,62465.0,62457.0,0.001642]
[1728438430129,0.33865149,62471.0,62463.0,0.320187]
[1728438430130,0.47556244,62471.0,62463.0,0.320187]
[1728438430369,0.24125064,62466.0,62465.0,0.160088]
[1728438430595,0.47556244,62471.0,62463.0,0.320187]
[1728438430823,0.160077,62470.0,62466.0,0.160085]
[1728438431052,0.15541344,62471.0,62466.0,0.160085]
[1728438431303,0.32448844,62471.0,62465.0,0.480265]
[1728438431523,0.32448844,62471.0,62466.0,0.160086]
[1728438431524,0.160077,62470.0,62466.0,0.160086]
[1728438432230,0.160072,62472.0,62468.0,0.16008]
[1728438432454,0.160075,62471.0,62461.0,0.320198]
[1728438432677,0.160075,62471.0,62467.0,0.160082]
[1728438432897,0.164075,62471.0,62467.0,0.160082]
[1728438433127,0.31548544,62472.0,62466.0,0.320173]
[1728438433351,0.31548544,62472.0,62468.0,0.160081]
[1728438433582,0.160075,62471.0,62467.0,0.160083]
[1728438434123,0.31648644,62472.0,62467.0,0.160083]
[1728438434370,0.160075,62471.0,62467.0,0.160084]
[1728438434610,0.160086,62467.0,62460.0,0.160101]
[1728438434870,0.15541344,62466.0,62457.0,0.001642]
[1728438435114,0.26493805,62469.0,62459.0,0.24125064]
[1728438435353,0.26493805,62469.0,62457.0,0.321861]
[1728438435354,0.160087,62466.0,62462.0,0.160095]
[1728438436016,0.0817,62469.0,62462.0,0.320191]
[1728438436293,0.16007,62473.0,62469.0,0.160078]
[1728438436545,0.0753,62474.0,62464.0,0.320182]
[1728438436782,0.001,62472.0,62469.0,0.160077]
[1728438437257,0.001,62472.0,62462.0,0.005]
[1728438437258,0.24125064,62470.0,62462.0,0.005]
[1728438437494,0.18323805,62468.0,62463.0,0.24125064]
[1728438437755,0.160088,62466.0,62462.0,0.165097]
[1728438438216,0.160088,62466.0,62462.0,0.160097]
[1728438438442,0.18323805,62468.0,62455.0,0.001642]
[1728438438443,0.15541344,62465.0,62455.0,0.001642]
[1728438438673,0.15541344,62465.0,62458.0,0.24125064]
[1728438438674,0.18323805,62462.0,62458.0,0.24125064]
[1728438438919,0.1601,62461.0,62458.0,0.24125064]
[1728438439159,0.1601,62461.0,62457.0,0.161749]
[1728438439645,0.32019,62463.0,62457.0,0.001642]
[1728438439895,0.1756,62464.0,62457.0,0.001642]
[1728438439896,0.160107,62458.0,62457.0,0.001642]
[1728438440167,0.320202,62461.0,62458.0,0.001]
[1728438440168,0.160105,62459.0,62458.0,0.001]
[1728438441578,0.160107,62458.0,62457.0,0.001642]
[1728438441797,0.160107,62458.0,62457.0,0.005642]
[1728438442473,0.160107,62458.0,62457.0,0.001642]
[1728438442809,0.160107,62458.0,62457.0,0.002642]
[1728438444554,0.160096,62463.0,62459.0,0.160104]
[1728438444768,0.160085,62467.0,62460.0,0.1601]
[1728438444977,0.160085,62467.0,62457.0,0.001642]
[1728438444978,0.32105064,62469.0,62457.0,0.001642]
[1728438445233,0.160083,62468.0,62464.0,0.160092]
[1728438445631,0.160087,62466.0,62460.0,0.480302]
[1728438445846,0.003,62463.0,62462.0,0.40134664]
[1728438446078,0.003,62463.0,62462.0,0.160096]
[1728438446320,0.25125064,62469.0,62468.0,0.160081]
[1728438446594,0.25125064,62469.0,62465.0,0.160087]
[1728438446595,0.40132964,62469.0,62465.0,0.160087]
[1728438446802,0.320149,62471.0,62463.0,0.320187]
[1728438446803,0.007,62466.0,62463.0,0.320187]
[1728438447012,0.004,62468.0,62464.0,0.16109]
[1728438447717,0.004,62468.0,62465.0,0.160089]
[1728438447970,0.004,62468.0,62466.0,0.160086]
[1728438448416,0.004,62468.0,62465.0,0.160089]
[1728438448638,0.164081,62468.0,62465.0,0.160089]
[1728438448851,0.160079,62469.0,62465.0,0.160089]
[1728438449538,0.002,62466.0,62465.0,0.160089]
[1728438449986,0.160079,62469.0,62465.0,0.160089]
[1728438450210,0.161079,62469.0,62465.0,0.160089]
[1728438450471,0.160079,62469.0,62465.0,0.164089]
[1728438450927,0.160082,62468.0,62465.0,0.004]
[1728438451158,0.0791,62473.0,62466.0,0.320171]
[1728438451383,0.160071,62473.0,62466.0,0.320171]
[1728438451602,0.160071,62473.0,62469.0,0.160078]
[1728438451832,0.160069,62473.0,62467.0,0.320167]
[1728438452030,0.160077,62470.0,62466.0,0.160085]
[1728438452260,0.65827564,62476.0,62465.0,0.56142664]
[1728438452512,0.160075,62471.0,62466.0,0.160085]
[1728438452738,0.160075,62471.0,62467.0,0.159984]
[1728438452997,0.160075,62471.0,62467.0,0.159884]
[1728438453196,0.320138,62473.0,62467.0,0.159784]
[1728438453427,0.15541344,62475.0,62466.0,0.003]
[1728438453652,0.15541344,62475.0,62467.0,0.160084]
[1728438453653,0.160075,62471.0,62467.0,0.160084]
[1728438453879,0.160075,62471.0,62468.0,0.160081]
[1728438454108,0.160069,62473.0,62467.0,0.321968]
[1728438454428,0.160072,62472.0,62468.0,0.159881]
[1728438454660,0.0999,62476.0,62472.0,0.16007]
[1728438454912,0.16007,62473.0,62469.0,0.160078]
[1728438455151,0.160067,62474.0,62470.0,0.159776]
[1728438455389,0.160067,62474.0,62470.0,0.159576]
[1728438455904,0.000821,62471.0,62470.0,0.159076]
[1728438456160,0.160896,62471.0,62468.0,0.0019]
[1728438456408,0.000821,62471.0,62468.0,0.160081]
[1728438456639,0.160081,62468.0,62467.0,0.001642]
[1728438456911,0.237081,62468.0,62467.0,0.001642]
[1728438458361,0.077,62468.0,62467.0,0.001642]
[1728438458619,0.000821,62471.0,62467.0,0.001642]
[1728438458861,0.000821,62471.0,62468.0,0.160081]
[1728438459108,0.000821,62471.0,62469.0,0.160079]
[1728438459360,0.000821,62471.0,62467.0,0.001642]
[1728438459580,0.000821,62471.0,62468.0,0.16008]
[1728438459809,0.000821,62471.0,62467.0,0.001642]
[1728438460031,0.000821,62471.0,62468.0,0.002]
[1728438460286,0.160897,62471.0,62468.0,0.002]
[1728438460517,0.000821,62471.0,62468.0,0.002]
[1728438460809,0.000821,62471.0,62470.0,0.160076]
[1728438462947,0.000821,62471.0,62470.0,0.162076]
[1728438475025,0.171521,62471.0,62470.0,0.002]
[1728438475262,0.51483305,62471.0,62470.0,0.002]
[1728438475499,0.67024649,62471.0,62470.0,0.002]
[1728438476236,0.236881,62468.0,62467.0,0.001642]
[1728438476461,0.48319444,62468.0,62467.0,0.001642]
[1728438476685,0.48554372,62468.0,62467.0,0.001642]
[1728438477621,0.48754372,62468.0,62467.0,0.001642]
[1728438478090,0.48554372,62468.0,62467.0,0.001642]
[1728438478582,0.48919444,62468.0,62467.0,0.001642]
[1728438478889,0.50418532,62468.0,62467.0,0.001642]
[1728438479606,0.50953557,62468.0,62467.0,0.001642]
[1728438479886,0.50353557,62468.0,62467.0,0.001642]
[1728438480080,0.50053557,62468.0,62467.0,0.001642]
[1728438480353,0.67094901,62468.0,62467.0,0.001642]
[1728438480619,0.65995813,62468.0,62467.0,0.002642]
[1728438480846,0.67494495,62468.0,62467.0,0.002642]
[1728438481563,0.66494495,62468.0,62467.0,0.002642]
[1728438481789,0.67894495,62468.0,62467.0,0.002642]
[1728438482256,0.66294495,62468.0,62467.0,0.001642]
[1728438482479,0.67694495,62468.0,62467.0,0.001642]
[1728438483084,0.67894495,62468.0,62467.0,0.002642]
[1728438483734,0.67892222,62468.0,62467.0,0.002642]
[1728438484564,0.80192222,62468.0,62467.0,0.002642]
[1728438484770,0.002,62458.0,62457.0,0.001642]
[1728438485152,0.68607317,62458.0,62457.0,0.001642]
[1728438485601,0.69107317,62458.0,62457.0,0.001642]
[1728438485820,0.71407317,62458.0,62457.0,0.001642]
[1728438486050,0.72007317,62458.0,62457.0,0.001642]
[1728438486295,0.87548661,62458.0,62457.0,0.001642]
[1728438486540,0.86948661,62458.0,62457.0,0.001642]
[1728438486747,0.88348661,62458.0,62457.0,0.001642]
[1728438486967,0.95652252,62458.0,62457.0,0.002642]
[1728438487866,0.97146206,62458.0,62457.0,0.002642]
[1728438488124,0.81369803,62458.0,62457.0,0.002642]
[1728438488337,0.83045854,62458.0,62457.0,0.001642]
[1728438488560,0.83045854,62458.0,62457.0,0.002642]
[1728438489019,0.83045854,62458.0,62457.0,0.001642]
[1728438489259,0.97422268,62458.0,62457.0,0.001642]
[1728438489479,1.00222268,62458.0,62457.0,0.002642]
[1728438489903,0.98822268,62458.0,62457.0,0.001642]
[1728438490404,0.98822268,62458.0,62448.0,0.001642]
[1728438490405,0.36663805,62449.0,62448.0,0.001642]
[1728438490609,0.68218149,62449.0,62448.0,0.001642]
[1728438490851,0.69945683,62449.0,62448.0,0.001642]
[1728438491278,0.84047036,62449.0,62448.0,0.001642]
[1728438491824,0.160207,62419.0,62418.0,0.001642]
[1728438492043,0.36336969,62419.0,62418.0,0.001642]
[1728438492294,0.36336969,62419.0,62414.0,0.001642]
[1728438492295,0.165217,62415.0,62414.0,0.001642]
[1728438492514,0.36337969,62415.0,62414.0,0.001642]
[1728438492753,0.35837969,62415.0,62414.0,0.001642]
[1728438492975,0.50386849,62415.0,62414.0,0.001642]
[1728438493203,0.65928193,62415.0,62414.0,0.001642]
[1728438493657,0.66528193,62415.0,62414.0,0.001642]
[1728438494865,0.66928193,62415.0,62414.0,0.001642]
[1728438496017,0.51386849,62415.0,62414.0,0.001642]
[1728438496262,0.50886849,62415.0,62414.0,0.001642]
[1728438496997,0.32563044,62415.0,62414.0,0.001642]
[1728438497233,0.170217,62415.0,62414.0,0.001642]
[1728438497462,0.50886849,62415.0,62414.0,0.001642]
[1728438497697,0.66428193,62415.0,62414.0,0.001642]
[1728438498207,0.98913257,62415.0,62414.0,0.001642]
[1728438498446,0.98913257,62415.0,62410.0,0.0024]
[1728438498447,0.35046605,62411.0,62410.0,0.0024]
[1728438498681,0.50587949,62411.0,62410.0,0.0024]
[1728438498915,0.66364369,62411.0,62410.0,0.0024]
[1728438499148,0.67849358,62411.0,62410.0,0.0024]
[1728438499639,0.67614282,62411.0,62410.0,0.0024]
[1728438499882,0.67849358,62411.0,62410.0,0.0024]
[1728438500122,0.66364369,62411.0,62410.0,0.0024]
[1728438500372,0.66364369,62411.0,62406.0,0.001642]
[1728438500373,0.162238,62407.0,62406.0,0.001642]
[1728438500630,0.35048105,62405.0,62404.0,0.001644]
[1728438500889,0.60099449,62405.0,62404.0,0.001644]
[1728438501119,0.71890378,62405.0,62404.0,0.001644]
[1728438501356,0.87431722,62405.0,62404.0,0.001644]
[1728438501576,0.87231722,62405.0,62404.0,0.001644]
[1728438501885,0.62180378,62405.0,62404.0,0.001644]
[1728438502565,0.63280378,62405.0,62404.0,0.001644]
[1728438502790,0.64180378,62405.0,62404.0,0.001644]
[1728438504196,0.63080378,62405.0,62404.0,0.001644]
[1728438504624,0.64180378,62405.0,62404.0,0.001644]
[1728438505078,0.63080378,62405.0,62404.0,0.001644]
[1728438505303,0.61680378,62405.0,62404.0,0.001644]
[1728438505529,0.62080378,62405.0,62404.0,0.001644]
[1728438505759,0.62680378,62405.0,62404.0,0.001644]